fUST/lending_fUST_20250820
["ID","MTS","AMOUNT","RATE_DAILY","PERIOD"]
[380351052,1755700236082,-480.0,0.00022097,2]
[380351054,1755700236091,-560.48624696,0.00022097,2]
[380351055,1755700236100,-464.52895528,0.00022097,2]
[380351056,1755700236109,-480.0,0.00022097,2]
[380351057,1755700236119,-480.0,0.00022097,2]
[380351058,1755700236128,-480.0,0.00022097,2]
[380351060,1755700236137,-480.0,0.00022097,2]
[380351061,1755700236147,-480.0,0.00022097,2]
[380351062,1755700236158,-309.99494278,0.00022098,2]
[380351063,1755700236167,-480.0,0.00022098,2]
[380351064,1755700236176,-480.0,0.00022098,2]
[380351066,1755700236186,-480.0,0.00022098,2]
[380351067,1755700236195,-480.0,0.00022098,2]
[380351068,1755700236205,-480.0,0.00022098,2]
[380351069,1755700236215,-481.59787742,0.00022098,2]
[380351070,1755700236224,-501.03,0.00022098,2]
[380351072,1755700236236,-480.0,0.00022098,2]
[380351073,1755700236245,-480.0,0.00022098,2]
[380351074,1755700236255,-481.04592878,0.00022098,2]
[380351075,1755700236264,-480.0,0.00022098,2]
[380351076,1755700236273,-496.03,0.00022098,2]
[380351077,1755700236282,-480.0,0.00022098,2]
[380351079,1755700236293,-480.0,0.00022098,2]
[380351080,1755700236302,-427.21510842,0.00022098,2]
[380351081,1755700236311,-481.46988713,0.00022098,2]
[380351082,1755700236321,-460.0,0.00022098,2]
[380351083,1755700236331,-460.0,0.00022098,2]
[380351085,1755700236339,-349.03058881,0.00022098,2]
[380351086,1755700236350,-480.0,0.00022098,2]
[380351087,1755700236359,-365.57242675,0.00022098,2]
[380351088,1755700236368,-484.36780417,0.00022098,2]
[380351090,1755700236378,-480.0,0.00022098,2]
[380351091,1755700236388,-480.0,0.00022098,2]
[380351092,1755700236397,-480.0,0.00022098,2]
[380351093,1755700236407,-480.0,0.00022098,2]
[380351094,1755700236416,-480.0,0.00022098,2]
[380351096,1755700236425,-480.0,0.00022098,2]
[380351097,1755700236435,-480.0,0.00022098,2]
[380351098,1755700236444,-480.0,0.00022098,2]
[380351099,1755700236454,-462.4635516,0.00022098,2]
[380351100,1755700236463,-480.0,0.00022098,2]
[380351101,1755700236472,-480.0,0.00022098,2]
[380351102,1755700236481,-480.0,0.00022098,2]
[380351103,1755700236494,-480.0,0.00022098,2]
[380351104,1755700236503,-461.23893641,0.00022098,2]
[380351105,1755700236512,-480.0,0.00022098,2]
[380351106,1755700236521,-529.78,0.00022098,2]
[380351107,1755700236530,-335.6929231,0.00022098,2]
[380351108,1755700236539,-480.0,0.00022098,2]
[380351109,1755700236549,-500.0,0.00022098,2]
[380351110,1755700236557,-480.0,0.00022098,2]
[380351111,1755700236566,-480.0,0.00022098,2]
[380351113,1755700236574,-294.99157599,0.00022098,2]
[380351114,1755700236584,-545.76787865,0.00022098,2]
[380351115,1755700236594,-480.0,0.00022098,2]
[380351116,1755700236604,-480.0,0.00022098,2]
[380351117,1755700236613,-270.31621302,0.00022098,2]
[380351119,1755700236623,-480.0,0.00022098,2]
[380351120,1755700236632,-480.0,0.00022099,2]
[380351121,1755700236641,-480.0,0.00022099,2]
[380351122,1755700236651,-480.0,0.00022099,2]
[380351123,1755700236660,-782.87,0.00022099,2]
[380351125,1755700236669,-480.0,0.000221,2]
[380351126,1755700236678,-480.0,0.000221,2]
[380351127,1755700236688,-480.0,0.000221,2]
[380351128,1755700236697,-480.0,0.000221,2]
[380351129,1755700236708,-480.0,0.000221,2]
[380351131,1755700236718,-869.46,0.000221,2]
[380351132,1755700236727,-480.0,0.000221,2]
[380351133,1755700236739,-1010.52391408,0.000221,2]
[380351134,1755700236749,-482.96560454,0.000221,2]
[380351136,1755700236758,-127.48558158,0.000221,2]
[380351138,1755700236803,-352.51441842,0.000221,2]
[380351139,1755700236815,-480.0,0.000221,2]
[380351140,1755700236829,-480.0,0.000221,2]
[380351142,1755700236840,-480.0,0.000221,2]
[380351143,1755700236851,-480.0,0.000221,2]
[380351144,1755700236861,-309.86719636,0.000221,2]
[380351145,1755700236871,-249.11699761,0.000221,2]
[380351147,1755700236883,-199.0,0.00022138,20]
[380351148,1755700236895,-199.0,0.00022238,20]
[380351149,1755700236905,-552.52,0.0002227,2]
[380351150,1755700236916,-552.52,0.0002227,2]
[380351152,1755700236927,-552.52,0.0002227,2]
[380351153,1755700236937,-552.52,0.0002227,2]
[380351154,1755700236948,-552.52,0.0002227,2]
[380351155,1755700236959,-480.0,0.0002227,2]
[380351157,1755700236970,-199.0,0.00022338,20]
[380351158,1755700236981,-876.632237,0.00022356,2]
[380351159,1755700236994,-431.9034523,0.00022356,2]
[380351160,1755700237005,-528.77847288,0.0002237,2]
[380351162,1755700237017,-216.9170744,0.0002237,2]
[380351163,1755700237028,-388.50367108,0.00022371,2]
[380351164,1755700237043,-75.36873198,0.00022371,2]
[380351165,1755700237054,-480.0,0.00022371,2]
[380351167,1755700237065,-480.0,0.00022371,2]
[380351168,1755700237076,-480.0,0.00022371,2]
[380351169,1755700237088,-413.54,0.00022371,2]
[380351170,1755700237099,-215.33,0.00022372,2]
[380351172,1755700237110,-319.41478512,0.00022372,2]
[380351173,1755700237121,-480.0,0.00022372,2]
[380351174,1755700237132,-480.0,0.00022372,2]
[380351175,1755700237144,-483.87599697,0.00022372,2]
[380351177,1755700237155,-480.0,0.00022373,2]
[380351178,1755700237166,-782.87,0.00022373,2]
[380351179,1755700237177,-869.46,0.00022374,2]
[380351180,1755700237188,-300.0,0.00022438,20]
[380351182,1755700237198,-300.0,0.00022438,20]
[380351183,1755700237208,-300.0,0.00022438,20]
[380351184,1755700237218,-300.0,0.00022438,20]
[380351185,1755700237229,-187.52122724,0.00022438,20]
[380351187,1755700237246,-112.47877276,0.00022438,20]
[380351188,1755700237255,-1210.97595555,0.00022461,2]
[380351189,1755700237267,-1949.21079228,0.0002247,2]
[380351190,1755700237286,-588.58435997,0.0002247,2]
[380351192,1755700237300,-456.47960642,0.0002247,2]
[380351193,1755700237315,-824.88,0.0002247,2]
[380351194,1755700237328,-467.67133366,0.0002247,2]
[380351196,1755700237339,-1599.66407715,0.0002247,2]
[380351197,1755700237350,-226.4313764,0.00022528,3]
[380351198,1755700237364,-1533.3586236,0.00022528,3]
[380351199,1755700237375,-151.32071379,0.00022528,3]
[380351220,1755700237979,-728.56928621,0.00022528,3]
[380351221,1755700237994,-439.95,0.00022528,3]
[380351223,1755700238005,-219.97,0.00022528,3]
[380351224,1755700238016,-659.94,0.00022528,3]
[380351225,1755700238026,-77590.75123008,0.00022538,2]
[380351226,1755700238044,-545.89180486,0.00022538,2]
[380351229,1755700238091,-291863.35696506,0.00022538,2]
[380351231,1755700238103,-225.21,0.0002257,2]
[380351232,1755700238115,-500.0,0.00022573,2]
[380351233,1755700238125,-500.0,0.00022573,2]
[380351234,1755700238136,-500.99347264,0.00022573,2]
[380351236,1755700238146,-372.06806799,0.00022573,2]
[380351237,1755700238156,-500.2392676,0.00022573,2]
[380351238,1755700238166,-493.15521029,0.00022573,2]
[380351239,1755700238176,-501.64242346,0.00022573,2]
[380351241,1755700238188,-501.06231675,0.00022573,2]
[380351242,1755700238201,-367.6759429,0.00022573,2]
[380351243,1755700238211,-500.0,0.00022573,2]
[380351244,1755700238222,-500.51423272,0.00022573,2]
[380351245,1755700238235,-444.41507152,0.00022573,2]
[380351247,1755700238246,-507.05938576,0.00022573,2]
[380351248,1755700238258,-501.03677337,0.00022573,2]
[380351249,1755700238268,-503.38329971,0.00022573,2]
[380351250,1755700238279,-500.0,0.00022573,2]
[380351252,1755700238291,-500.0,0.00022573,2]
[380351253,1755700238302,-500.39775222,0.00022573,2]
[380351254,1755700238313,-9098.36,0.000226,7]
[380351255,1755700238325,-5417.28,0.000226,7]
[380351257,1755700238336,-1275.37,0.000226,7]
[380351258,1755700238347,-12687.94051737,0.000226,7]
[380351259,1755700238357,-528.77847288,0.000226,7]
[380351260,1755700238368,-375.94359665,0.000226,7]
[380351262,1755700238378,-152.11094071,0.00022638,2]
[380351263,1755700238389,-151.0,0.00022638,2]
[380351264,1755700238400,-151.0,0.00022638,2]
[380351265,1755700238410,-182.74159952,0.00022638,2]
[380351266,1755700238420,-2183.31810187,0.00022638,2]
[380351268,1755700238431,-480.0,0.00022645,2]
[380351269,1755700238442,-181.36,0.00022645,2]
[380351270,1755700238452,-782.87,0.00022647,2]
[380351271,1755700238463,-869.46,0.00022648,2]
[380351273,1755700238474,-1020.26502815,0.0002265,2]
[380351274,1755700238486,-844.97470279,0.00022706,2]
[380351275,1755700238497,-420.0,0.00022889,2]
[380351276,1755700238507,-535.64,0.00022919,2]
[380351278,1755700238518,-782.87,0.00022921,2]
[380351279,1755700238529,-869.46,0.00022922,2]
[380351280,1755700238540,-1680.0,0.00022998,2]
[380351281,1755700238550,-160.0,0.00023,2]
[380351283,1755700238561,-160.8718701,0.00023041,2]
[380351284,1755700238571,-160.8718701,0.00023041,2]
[380351285,1755700238582,-581.0009137,0.00023041,2]
[380351286,1755700238593,-587.487889,0.00023041,2]
[380351288,1755700238603,-293.9452039,0.00023041,2]
[380351289,1755700238614,-160.8718701,0.00023041,2]
[380351290,1755700238624,-581.0009137,0.00023041,2]
[380351291,1755700238635,-160.8718701,0.00023041,2]
[380351293,1755700238646,-581.0009137,0.00023041,2]
[380351294,1755700238657,-293.9452039,0.00023041,2]
[380351295,1755700238668,-294.50621511,0.00023112,2]
[380351296,1755700238679,-1000.0,0.00023121,2]
[380351298,1755700238690,-892.77478874,0.00023156,2]
[380351299,1755700238700,-160.0,0.0002316,2]
[380351300,1755700238710,-782.87,0.00023195,2]
[380351301,1755700238720,-869.46,0.00023196,2]
[380351302,1755700238729,-1599.66407711,0.00023328,2]
[380351304,1755700238742,-200.0,0.0002338,7]
[380351305,1755700238752,-1020.26502815,0.00023389,2]
[380351309,1755700238909,-782.87,0.00023469,2]
[380351310,1755700238921,-869.46,0.0002347,2]
[380351312,1755700238930,-591.0,0.00023538,2]
[380351313,1755700238939,-168.0,0.00023578,2]
[380351314,1755700238948,-591.0,0.00023589,2]
[380351315,1755700238957,-591.0,0.00023642,2]
[380351316,1755700238966,-844.97470279,0.00023642,2]
[380351318,1755700238975,-1500.0,0.00023668,2]
[380351319,1755700238987,-500.0,0.00023675,2]
[380351320,1755700238996,-555.18793954,0.00023675,2]
[380351321,1755700239006,-284.70517059,0.00023675,2]
[380351322,1755700239015,-500.0,0.00023675,2]
[380351324,1755700239025,-633.9553656,0.00023675,2]
[380351325,1755700239034,-500.0,0.00023675,2]
[380351326,1755700239044,-500.0,0.00023675,2]
[380351327,1755700239053,-500.0,0.00023675,2]
[380351329,1755700239062,-500.0,0.00023675,2]
[380351330,1755700239071,-501.07752612,0.00023675,2]
[380351331,1755700239081,-500.0,0.00023675,2]
[380351332,1755700239090,-501.04144634,0.00023675,2]
[380351333,1755700239099,-500.0,0.00023675,2]
[380351335,1755700239109,-500.0,0.00023675,2]
[380351336,1755700239118,-4286.82609232,0.00023685,2]
[380351337,1755700239128,-591.0,0.00023696,2]
[380351338,1755700239137,-260.0,0.00023708,2]
[380351339,1755700239146,-591.0,0.00023725,2]
[380351341,1755700239155,-3835.46391517,0.0002373,2]
[380351342,1755700239164,-782.87,0.00023743,2]
[380351343,1755700239173,-869.46,0.00023744,2]
[380351344,1755700239183,-3835.46391517,0.00023751,2]
[380351346,1755700239192,-591.0,0.00023797,2]
[380351347,1755700239201,-163.71,0.000238,2]
[380351348,1755700239211,-468.0,0.00023811,2]
[380351349,1755700239220,-239.92302009,0.00023811,2]
[380351350,1755700239229,-151.0,0.00023811,2]
[380351352,1755700239241,-151.0,0.00023811,2]
[380351353,1755700239250,-500.0,0.00023811,2]
[380351354,1755700239260,-151.0,0.00023811,2]
[380351355,1755700239270,-165.79676134,0.00023811,2]
[380351356,1755700239279,-151.0,0.00023811,2]
[380351358,1755700239289,-151.0,0.00023811,2]
[380351359,1755700239298,-263.83488491,0.00023811,2]
[380351360,1755700239308,-152.24880878,0.00023811,2]
[380351361,1755700239317,-210.71251693,0.00023811,2]
[380351363,1755700239326,-151.0,0.00023811,2]
[380351364,1755700239335,-151.0,0.00023811,2]
[380351365,1755700239347,-591.0,0.00023824,2]
[380351366,1755700239357,-160.8718701,0.00023863,2]
[380351367,1755700239367,-581.0009137,0.00023863,2]
[380351369,1755700239376,-293.9452039,0.00023863,2]
[380351370,1755700239385,-321.7437402,0.00023863,2]
[380351371,1755700239395,-581.0009137,0.00023863,2]
[380351372,1755700239404,-581.0009137,0.00023863,2]
[380351373,1755700239414,-160.4007933,0.00023863,2]
[380351375,1755700239424,-293.9452039,0.00023863,2]
[380351376,1755700239434,-293.9452039,0.00023863,2]
[380351377,1755700239444,-160.8718701,0.00023863,2]
[380351378,1755700239453,-699.2708393,0.00023863,2]
[380351380,1755700239462,-160.8718701,0.00023863,2]
[380351381,1755700239472,-581.0009137,0.00023863,2]
[380351382,1755700239481,-581.0009137,0.00023863,2]
[380351383,1755700239495,-160.8718701,0.00023863,2]
[380351385,1755700239504,-322.9256975,0.00023863,2]
[380351386,1755700239513,-581.0009137,0.00023863,2]
[380351387,1755700239522,-160.8129855,0.00023863,2]
[380351388,1755700239531,-581.0009137,0.00023863,2]
[380351389,1755700239540,-581.0009137,0.00023863,2]
[380351391,1755700239549,-581.0009137,0.00023863,2]
[380351392,1755700239558,-581.0009137,0.00023863,2]
[380351393,1755700239567,-479.4790244,0.00023863,2]
[380351395,1755700239577,-432.05615251,0.00023873,2]
[380351396,1755700239586,-309.70042856,0.00023873,2]
[380351399,1755700239596,-160.88306904,0.00023873,2]
[380351400,1755700239605,-536.56572488,0.00023873,2]
[380351402,1755700239615,-500.0,0.00023873,2]
[380351405,1755700239625,-500.0,0.00023873,2]
[380351407,1755700239634,-500.0,0.00023873,2]
[380351410,1755700239643,-500.0,0.00023873,2]
[380351412,1755700239652,-500.0,0.00023873,2]
[380351414,1755700239661,-500.0,0.00023873,2]
[380351416,1755700239671,-464.79902668,0.00023873,2]
[380351418,1755700239680,-500.0,0.00023873,2]
[380351421,1755700239690,-500.0,0.00023873,2]
[380351423,1755700239699,-181.34004703,0.00023873,2]
[380351425,1755700239708,-500.0,0.00023873,2]
[380351427,1755700239717,-500.0,0.00023873,2]
[380351429,1755700239727,-503.18202365,0.00023873,2]
[380351432,1755700239738,-500.0,0.00023873,2]
[380351434,1755700239747,-501.33223356,0.00023873,2]
[380351436,1755700239756,-500.0,0.00023873,2]
[380351438,1755700239765,-500.0,0.00023873,2]
[380351440,1755700239775,-500.0,0.00023873,2]
[380351442,1755700239784,-500.0,0.00023873,2]
[380351445,1755700239793,-502.76678058,0.00023873,2]
[380351447,1755700239802,-500.0,0.00023873,2]
[380351449,1755700239813,-500.67768814,0.00023873,2]
[380351451,1755700239826,-501.24782479,0.00023873,2]
[380351454,1755700239835,-500.0,0.00023873,2]
[380351456,1755700239845,-508.52762757,0.00023873,2]
[380351458,1755700239855,-500.0,0.00023873,2]
[380351460,1755700239863,-591.0,0.00023889,2]
[380351462,1755700239872,-500.0,0.00023893,2]
[380351465,1755700239882,-1629.08060969,0.00023893,2]
[380351466,1755700239892,-1629.08060969,0.00023893,2]
[380351467,1755700239901,-1629.08060969,0.00023893,2]
[380351468,1755700239912,-1629.08060969,0.00023893,2]
[380351470,1755700239922,-500.0,0.00023893,2]
[380351473,1755700239932,-1629.08060969,0.00023893,2]
[380351475,1755700239941,-1629.08060969,0.00023893,2]
[380351477,1755700239950,-1629.08060969,0.00023893,2]
[380351479,1755700239960,-165.88586727,0.00023893,2]
[380351481,1755700239969,-1629.08060969,0.00023893,2]
[380351484,1755700239979,-1629.08060969,0.00023893,2]
[380351486,1755700239992,-1629.08060969,0.00023893,2]
[380351488,1755700240001,-1629.08060969,0.00023893,2]
[380351490,1755700240010,-1629.08060969,0.00023893,2]
[380351492,1755700240019,-1629.08060969,0.00023893,2]
[380351495,1755700240029,-1629.08060969,0.00023893,2]
[380351497,1755700240038,-1629.08060969,0.00023893,2]
[380351499,1755700240047,-1629.08060969,0.00023893,2]
[380351501,1755700240056,-1629.08060969,0.00023893,2]
[380351503,1755700240065,-3519.58,0.00023898,3]
[380351506,1755700240075,-1759.78,0.00023898,3]
[380351508,1755700240084,-879.9,0.00023898,3]
[380351510,1755700240094,-439.94,0.00023898,3]
[380351512,1755700240103,-10923.23463351,0.00023898,3]
[380351515,1755700240113,-160.0,0.00023898,3]
[380351520,1755700240122,-528.77847288,0.00023898,3]
[380351524,1755700240132,-216.9170744,0.00023898,3]
[380351527,1755700240141,-375.94359665,0.00023898,3]
[380351529,1755700240150,-232.24568399,0.00023898,3]
[380351532,1755700240159,-844.05985274,0.00023898,3]
[380351535,1755700240167,-158.7577131,0.00023899,7]
[380351537,1755700240176,-151.0,0.00023899,7]
[380351538,1755700240185,-273380.52,0.000239,4]
[380351539,1755700240194,-8526.87,0.000239,4]
[380351540,1755700240203,-21082.23,0.000239,4]
[380351542,1755700240212,-11577.62,0.000239,4]
[380351543,1755700240222,-2897.01957089,0.000239,4]
[380351545,1755700240253,-199.0,0.00021838,20]
[380351546,1755700240262,-6238.01302051,0.000239,4]
[380351547,1755700240273,-5688.25423547,0.000239,4]
[380351548,1755700240284,-7711.80650748,0.000239,4]
[380351690,1755700246082,-1162.0018274,0.00023041,2]
[380351691,1755700246091,-5740.90737619,0.000239,4]
[380355613,1755700787525,498.4,0.00027397,120]
[380355614,1755700809355,166.429071,0.00013699,2]
[380355615,1755700857515,5000.0,0.0001911,2]
[380355622,1755700879869,5000.0,0.0001911,2]
[380355623,1755700902686,5000.0,0.0001911,2]
[380355624,1755700927254,5000.0,0.0001911,2]
[380355625,1755700958829,2603.95441007,0.00019111,2]
[380355630,1755701186618,151.80388362,0.000189,2]
[380355658,1755701432270,-987.24009623,0.000199,2]
[380355660,1755701432281,-203.75951921,0.00020649,2]
[380355662,1755701432290,-1582.6684932,0.00020671,2]
[380355664,1755701432300,-987.24009594,0.00020835,2]
[380355666,1755701432309,-364.494335,0.00020932,2]
[380355668,1755701432320,-987.24009594,0.00021771,2]
[380355670,1755701432330,-300.0,0.00021822,2]
[380355672,1755701432339,-1128.98903791,0.00021822,2]
[380355674,1755701432351,-71.01096209,0.00021822,2]
[380355676,1755701432360,-668.25760501,0.00021823,2]
[380355741,1755701438272,-4258.78866909,0.00021823,2]
[380355743,1755701438282,-193.59978248,0.00021874,2]
[380355745,1755701438292,-480.0,0.00021917,3]
[380355747,1755701438302,-480.0,0.00021972,3]
[380355748,1755701438311,-480.0,0.00021972,3]
[380355750,1755701438320,-460.94748967,0.00021972,3]
[380355752,1755701438329,-480.0,0.00021972,3]
[380355754,1755701438338,-480.0,0.00021972,3]
[380355756,1755701438348,-480.0,0.00021972,3]
[380355758,1755701438357,-480.0,0.00021972,2]
[380355760,1755701438367,-2306.9088532,0.00021972,2]
[380355763,1755701438377,-500.51423272,0.00021973,2]
[380355765,1755701438387,-444.41507152,0.00021973,2]
[380355768,1755701438396,-507.05938576,0.00021973,2]
[380355770,1755701438405,-503.38329971,0.00021973,2]
[380355772,1755701438415,-501.03677337,0.00021973,2]
[380355774,1755701438424,-367.6759429,0.00021973,2]
[380355776,1755701438434,-501.06231675,0.00021973,2]
[380355778,1755701438443,-501.64242346,0.00021973,2]
[380355780,1755701438453,-500.0,0.00021973,2]
[380355782,1755701438463,-500.39775222,0.00021973,2]
[380355784,1755701438472,-500.0,0.00021973,2]
[380355786,1755701438483,-500.0,0.00021973,2]
[380355788,1755701438493,-500.99880936,0.00021973,3]
[380355790,1755701438503,-480.0,0.00021973,3]
[380355792,1755701438514,-386.74999916,0.00021973,3]
[380355794,1755701438523,-12687.94051737,0.00021974,2]
[380355796,1755701438533,-216.9170744,0.00021974,2]
[380355798,1755701438542,-528.77847288,0.00021974,2]
[380355800,1755701438552,-44101.89310476,0.00021996,2]
[380355803,1755701438564,-49577.49121089,0.00021996,2]
[380355805,1755701438574,-1275.37,0.00022,7]
[380355807,1755701438583,-547.57,0.00022097,3]
[380355809,1755701438593,-757.25,0.00022097,3]
[380355810,1755701438602,-329.33085934,0.00022097,3]
[380355812,1755701438611,-659.54,0.00022098,2]
[380355814,1755701438620,-480.0,0.00022246,3]
[380355816,1755701438630,-480.0,0.00022246,3]
[380355818,1755701438639,-480.0,0.00022246,3]
[380355820,1755701438648,-447.80101653,0.00022246,3]
[380355823,1755701438660,-32.19898347,0.00022246,3]
[380355824,1755701438669,-480.0,0.00022246,2]
[380355827,1755701438678,-444.37050784,0.00022247,3]
[380355829,1755701438688,-645.82467138,0.00022371,3]
[380355831,1755701438699,-111.42532862,0.00022371,3]
[380355833,1755701438708,-659.54,0.00022372,2]
[380355835,1755701438717,-500.0,0.00022417,2]
[380355837,1755701438727,-500.99347264,0.00022417,2]
[380355839,1755701438736,-500.0,0.00022417,2]
[380355841,1755701438746,-480.0,0.0002252,3]
[380355843,1755701438755,-480.0,0.0002252,3]
[380355845,1755701438766,-480.0,0.0002252,3]
[380355847,1755701438776,-480.0,0.0002252,3]
[380355849,1755701438785,-282.94897583,0.0002252,2]
[380355851,1755701438795,-1000.0,0.00022521,2]
[380355852,1755701438804,-215.82729805,0.00022521,3]
[380355854,1755701438814,-528.77847288,0.00022521,3]
[380355856,1755701438823,-375.94359665,0.00022521,3]
[380355858,1755701438832,-168.51,0.00022636,3]
[380355860,1755701438841,-1674.80184529,0.00022638,2]
[380355996,1755701440383,-508.51625658,0.00022638,2]
[380355998,1755701440392,-151.0,0.00022638,2]
[380356000,1755701440402,-151.0,0.00022638,2]
[380356002,1755701440411,-182.74159952,0.00022638,2]
[380356004,1755701440420,-152.11094071,0.00022638,2]
[380356006,1755701440430,-757.25,0.00022645,3]
[380356008,1755701440439,-659.54,0.00022646,2]
[380356010,1755701440449,-225.21,0.0002269,2]
[380356011,1755701440458,-134.43611852,0.00022706,2]
[380356014,1755701440469,-536.68817844,0.00022706,2]
[380356278,1755701443470,-316.11579898,0.00022706,2]
[380356280,1755701443480,-674.04,0.00022909,3]
[380356282,1755701443490,-337.02,0.00022909,3]
[380356284,1755701443499,-757.25,0.00022919,3]
[380356286,1755701443508,-659.54,0.0002292,2]
[380356288,1755701443519,-1847.31,0.0002298,3]
[380356290,1755701443528,-505.55,0.0002298,3]
[380356292,1755701443538,-382.7,0.0002299,3]
[380356293,1755701443547,-1348.08,0.0002299,3]
[380356295,1755701443556,-844.05985274,0.00023,3]
[380356297,1755701443565,-160.0,0.00023,3]
[380356299,1755701443575,-160.0,0.00023,3]
[380356301,1755701443584,-232.24568399,0.00023,3]
[380356303,1755701443593,-1500.0,0.00023068,2]
[380356305,1755701443602,-160.0,0.00023175,2]
[380356307,1755701443611,-892.77478874,0.00023176,2]
[380356309,1755701443621,-757.25,0.00023193,3]
[380356311,1755701443631,-659.54,0.00023194,2]
[380356313,1755701443640,-617.0,0.00023422,2]
[380356315,1755701443649,-757.25,0.00023467,3]
[380356317,1755701443659,-659.54,0.00023468,2]
[380356320,1755701443668,-294.50621511,0.00023514,2]
[380356322,1755701443677,-200.0,0.0002352,8]
[380356324,1755701443686,-767.29054172,0.00023616,2]
[380356326,1755701443696,-987.24009594,0.00023642,2]
[380356328,1755701443705,-215.82729805,0.00023652,2]
[380356330,1755701443714,-375.94359665,0.00023653,2]
[380356332,1755701443724,-844.05985274,0.00023653,2]
[380356334,1755701443733,-160.0,0.00023653,2]
[380356336,1755701443743,-160.0,0.00023658,2]
[380356338,1755701443752,-2091.8238685,0.000237,2]
[380356340,1755701443761,-4082.6915165,0.000237,2]
[380356342,1755701443770,-2718.54433419,0.000237,3]
[380356344,1755701443779,-420.0,0.00023717,2]
[380356346,1755701443788,-260.0,0.00023723,2]
[380356348,1755701443797,-757.25,0.00023741,3]
[380356350,1755701443807,-659.54,0.00023742,2]
[380356352,1755701443817,-3451.91752384,0.0002376,2]
[380356353,1755701443826,-181.34004703,0.00023773,2]
[380356355,1755701443835,-500.0,0.00023773,2]
[380356357,1755701443845,-500.0,0.00023773,2]
[380356359,1755701443854,-500.0,0.00023773,2]
[380356361,1755701443863,-500.0,0.00023773,2]
[380356363,1755701443873,-500.0,0.00023773,2]
[380356365,1755701443882,-500.0,0.00023773,2]
[380356367,1755701443891,-464.79902668,0.00023773,2]
[380356369,1755701443901,-500.0,0.00023773,2]
[380356371,1755701443911,-501.24782479,0.00023773,2]
[380356373,1755701443922,-502.76678058,0.00023773,2]
[380356375,1755701443932,-500.67768814,0.00023773,2]
[380356377,1755701443941,-500.0,0.00023773,2]
[380356379,1755701443950,-500.0,0.00023773,2]
[380356381,1755701443959,-500.0,0.00023773,2]
[380356383,1755701443969,-500.0,0.00023773,2]
[380356385,1755701443978,-501.04144634,0.00023773,2]
[380356387,1755701443988,-555.18793954,0.00023773,2]
[380356389,1755701443997,-500.0,0.00023773,2]
[380356391,1755701444006,-508.52762757,0.00023773,2]
[380356393,1755701444015,-284.70517059,0.00023773,2]
[380356395,1755701444026,-633.9553656,0.00023773,2]
[380356397,1755701444036,-500.0,0.00023773,2]
[380356399,1755701444045,-500.0,0.00023773,2]
[380356401,1755701444054,-500.0,0.00023773,2]
[380356403,1755701444064,-500.0,0.00023773,2]
[380356405,1755701444074,-3451.91752384,0.00023776,2]
[380356407,1755701444083,-500.0,0.00023789,2]
[380356409,1755701444094,-1629.08060969,0.00023789,2]
[380356411,1755701444103,-1629.08060969,0.00023789,2]
[380356413,1755701444112,-1629.08060969,0.00023789,2]
[380356415,1755701444122,-1629.08060969,0.00023789,2]
[380356417,1755701444132,-500.0,0.00023789,2]
[380356419,1755701444146,-1629.08060969,0.00023789,2]
[380356421,1755701444155,-165.88586727,0.00023789,2]
[380356423,1755701444164,-1629.08060969,0.00023789,2]
[380356425,1755701444174,-1629.08060969,0.00023789,2]
[380356426,1755701444186,-1629.08060969,0.00023789,2]
[380356428,1755701444195,-1629.08060969,0.00023789,2]